[Event "GER-ch Youth-ODJM 2022 A"]
[Site "Willingen"]
[Date "2022.06.08"]
[Round "6.14"]
[White "Savchenko, Daniel"]
[Black "Kruse, Victor"]
[Result "1-0"]
[ECO "B13"]
[WhiteElo "2134"]
[BlackElo "1733"]
[Annotator "TA"]
[PlyCount "89"]
[EventDate "2022.06.05"]
[EventType "swiss"]
[EventRounds "9"]
[EventCountry "GER"]
[SourceTitle "playchess.com"]
[Source "ChessBase"]
[SourceQuality "1"]
[TimeControl "40/4500+30:900+30"]

{[%evp 9,89,8,8,5,10,13,4,4,7,-5,10,11,10,1,11,16,40,21,46,-119,-110,-104,-109,-152,-116,-99,-114,-117,-88,-97,-94,-96,-88,-98,-94,-97,-95,-105,-94,-115,-110,-141,-145,-200,-202,-202,-138,-139,-161,-243,-215,-273,-176,-190,-179,-240,-231,-226,-130,-178,-185,-262,-100,-108,-63,-140,-114,-239,-219,-212,-127,-104,-97,-168,-140,-127,0,0,0,0,29998,29999]} 1. e4 {[%emt 0:00:00]} c6 {[%emt 0:00:00]} 2. d4 {[%emt 0:00:00]} d5 {[%emt 0:00:00]} 3. exd5 {[%emt 0:00:00]} cxd5 {[%emt 0:00:00]} 4. Bd3 {[%emt 0:00:00]} Nf6 {[%emt 0:00:00]} 5. h3 {[%emt 0:00:00]} Nc6 {[%emt 0:00:00]} 6. Nf3 {[%emt 0:00:00] B13: Caro-Kann: Exchange Variation and Panov-Botvinnik Attack.} g6 {[%emt 0:00:00]} 7. c3 {[%emt 0:00:00]} Bf5 {[%emt 0:00:00]} 8. Be2 $1 {[%emt 0:00:00][%mdl 4] The position is equal. is more profitable than 8.0-0 at the moment.} Qc7 {[%emt 0:00:00]} 9. O-O {[%emt 0:00:00]} Bg7 {[%emt 0:00:00]} 10. Re1 {[%emt 0:00:00]} O-O {[%emt 0:00:00]} 11. Be3 {[%emt 0:00:00]} a6 {[%emt 0:13:39]} 12. Nbd2 {[%emt 0:00:00]} b5 {[%emt 0:02:46] [#]} 13. Nh4 $146 {[%emt 0:00:00]} ({Predecessor:} 13. Nb3 Ne4 14. Nfd2 Rfd8 15. Bf1 Na5 16. Nxa5 Qxa5 17. Nb3 Qb6 18. f3 Nd6 19. Bf2 {½-½ (56) Goryachkina,A (2535)-Girya,O (2462) Satka 2018}) 13... Ne4 {[%emt 0:05:43]} 14. Bd3 $2 {[%emt 0:04:32] [#]} (14. Nxe4 $14 {keeps the upper hand.} dxe4 15. Nxf5 gxf5 16. a4) 14... Nxc3 $1 $17 {[%emt 0:12:34][%mdl 512]} 15. bxc3 {[%emt 0:01:38]} Bxd3 {[%emt 0:01:42]} 16. Qf3 {[%emt 0:00:55]} Bc4 {[%emt 0:03:16]} 17. Bf4 {[%emt 0:02:54]} Qd7 {[%emt 0:05:01]} (17... e5 {looks sharper.} 18. dxe5 Nxe5 19. Qg3 Rae8) 18. Nxc4 {[%emt 0:07:33]} bxc4 {[%emt 0:00:32]} 19. Qe3 {[%emt 0:01:50]} Rfe8 {[%emt 0:07:02]} 20. Nf3 {[%emt 0:00:54] Inhibits e5.} Ra7 {[%emt 0:02:05][%cal Ba8a7,Ba7b7,Bb7b2,Bb2e2][%mdl 32]} 21. Re2 {[%emt 0:05:35]} Rb7 {[%emt 0:00:51]} 22. Rae1 {[%emt 0:00:19]} a5 {[%emt 0:02:50]} 23. Qc1 {[%emt 0:06:10]} e6 {[%emt 0:02:24]} 24. Bh6 {[%emt 0:05:27]} Reb8 {[%emt 0:08:42][%cal Ob7b1]} 25. Qf4 {[%emt 0:04:09]} Rb2 {[%emt 0:03:31]} 26. Qh4 {[%emt 0:03:13]} (26. Rxb2 $17 {might work better.} Rxb2 27. h4) 26... Rxe2 $19 {[%emt 0:02:20]} 27. Rxe2 {[%emt 0:00:09]} f6 {[%emt 0:03:30]} 28. Bxg7 {[%emt 0:04:23]} Kxg7 {[%emt 0:00:11]} 29. Qg4 {[%emt 0:00:40] [#]} (29. Qf4 $142) 29... Nd8 $1 {[%emt 0:01:58]} 30. h4 {[%emt 0:01:32]} h5 {[%emt 0:01:00]} 31. Qf4 {[%emt 0:01:28]} Rb1+ {[%emt 0:00:24]} 32. Kh2 {[%emt 0:00:09]} (32. Re1 $142 Rb2 33. Nh2) 32... Nf7 {[%emt 0:00:27]} 33. g3 {[%emt 0:05:59]} Rb6 {[%emt 0:00:25]} (33... Nd6 $19 {...a4 is the strong threat.} 34. Qe3 Nf5) 34. Kg2 {[%emt 0:01:12]} (34. Qc1 $17 {was worth a try.}) 34... Qd6 {Hoping for ...Qxf4.} 35. Qxd6 {[%emt 0:00:50]} (35. Qd2 $142) 35... Rxd6 $2 {[%emt 0:00:42][%mdl 4096] Endgame KRN-KRN} (35... Nxd6 $19 36. Rxe6 a4 37. Re7+ Kf8) 36. Rb2 $17 {[%emt 0:00:17]} g5 {[%emt 0:02:53]} 37. hxg5 (37. a4 $15) 37... fxg5 {[%emt 0:03:04]} 38. Ne5 {[%emt 0:26:37]} (38. g4 $17 {was called for.}) 38... Nxe5 $19 {[%emt 0:01:25]} 39. dxe5 {[%emt 0:00:06] KR-KR} Ra6 {[%emt 0:00:05]} (39... Rd8 $19 {Strongly threatening ...Kg6.} 40. Rb6 Kf7) 40. f4 {[%emt 0:02:00]} a4 {[%emt 0:01:07]} 41. a3 {[%emt 0:15:29]} (41. Kf3 $17 {keeps fighting.}) 41... Kg6 {Threatens to win with ...gxf4.} 42. Kf3 {[%emt 0:01:20]} Kf5 {[%emt 0:17:33]} (42... Rc6 $17 {And now ...Rc8 would win.} 43. Ke3 Rc8 44. fxg5 Rf8) 43. Rb8 $1 $11 {[%emt 0:01:06] Rg8 would kill now.} gxf4 {[%emt 0:00:00]} 44. gxf4 {[%emt 0:00:00] White wants to mate with Rg8.} Rc6 $2 {[%emt 0:00:00][%mdl 8192]} (44... Kg6 $11) 45. Rg8 {Weighted Error Value: White=0.28 (precise) /Black=0.39} 1-0

[Event "GER-ch Youth-ODJM 2022 A"]
[Site "Willingen"]
[Date "2022.06.08"]
[Round "6.15"]
[White "Zha, Kevin"]
[Black "Hofmann, Lorenz"]
[Result "0-1"]
[ECO "B12"]
[WhiteElo "1835"]
[BlackElo "2056"]
[Annotator "TA"]
[PlyCount "58"]
[EventDate "2022.06.05"]
[EventType "swiss"]
[EventRounds "9"]
[EventCountry "GER"]
[SourceTitle "playchess.com"]
[Source "ChessBase"]
[SourceQuality "1"]
[TimeControl "40/4500+30:900+30"]

{[%evp 9,58,-13,8,-2,8,-6,0,3,2,-26,8,-14,17,-125,-97,-86,-84,-102,-85,-128,-120,-124,-125,-140,-125,-125,-62,-193,-180,-203,-148,-203,-204,-264,-254,-283,-281,-499,-484,-508,-453,-450,-447,-614,-583,-862,-877,-866,-757,-1826,-1516]} 1. e4 {[%emt 0:00:00]} c6 {[%emt 0:00:00]} 2. d4 {[%emt 0:00:00]} d5 {[%emt 0:00:00]} 3. f3 {[%emt 0:00:00]} Nf6 {[%emt 0:00:00]} 4. Nc3 {[%emt 0:00:00]} e6 {[%emt 0:00:00]} 5. Bg5 {[%emt 0:00:00]} Be7 {[%emt 0:00:00][%cal Of6e4]} 6. Qd2 {[%emt 0:00:00] B12: Caro-Kann: Advance Variation.} b5 {[%emt 0:00:00][%cal Bb7b5,Bb5b4][%mdl 32] [#]} 7. Bd3 $146 {[%emt 0:00:00]} ({Predecessor:} 7. e5 Nfd7 8. Bxe7 Qxe7 9. Nd1 a5 10. a3 Nb6 11. b3 N8d7 12. f4 b4 13. axb4 axb4 14. Rxa8 Nxa8 {1-0 (38) Gschnitzer,A (2211)-Lelumees,B (2124) Deizisau 2016}) 7... a5 {[%emt 0:08:28]} 8. Nge2 {[%emt 0:04:19] The position is equal.} b4 {[%emt 0:03:12]} 9. Nd1 {[%emt 0:03:15]} Ba6 {[%emt 0:00:39]} 10. Ne3 {[%emt 0:02:37]} Qb6 {[%emt 0:15:04]} 11. c4 {[%emt 0:05:33] [#]} (11. e5 $11 Bxd3 12. Qxd3) 11... Nxe4 $1 {[%emt 0:12:00][%mdl 512]} 12. fxe4 {[%emt 0:11:55] Bxe7 is the strong threat.} Bxg5 {[%emt 0:00:12]} 13. c5 {[%emt 0:00:14]} Qd8 {[%emt 0:00:55] White must now prevent ...dxe4.} 14. exd5 {[%emt 0:11:40]} exd5 {[%emt 0:00:30]} ({Worse is} 14... cxd5 15. Bxa6 Rxa6 16. O-O $15) 15. O-O {[%emt 0:00:23]} O-O {[%emt 0:01:28]} 16. Nf4 {[%emt 0:01:59]} g6 {[%emt 0:05:15]} 17. Ng4 {[%emt 0:07:12]} Nd7 {[%emt 0:03:17]} ({Black should try} 17... Bxd3 $17 18. Qxd3 Nd7) 18. Rf3 {[%emt 0:10:46] This move loses the game for White.} (18. Bxa6 $15 Rxa6 19. Rae1) 18... f5 $19 {[%emt 0:03:15]} 19. Nf2 {[%emt 0:01:39]} Re8 {[%emt 0:04:21]} 20. N2h3 {[%emt 0:01:41]} (20. Bxa6 $17 {was worth a try.} Rxa6 21. Re3) 20... Bh6 {[%emt 0:00:27]} 21. Re1 {[%emt 0:05:20]} Bxd3 22. Rxd3 {[%emt 0:01:30]} Re4 {[%emt 0:08:43]} 23. Rxe4 $2 {[%emt 0:04:19] [#]} (23. g3) 23... dxe4 {[%emt 0:00:29] Black is clearly winning.} (23... fxe4 $2 {loses.} 24. Re3 $19) 24. Rg3 {[%emt 0:00:15]} Nf6 {[%emt 0:01:56]} 25. Qd1 {[%emt 0:00:17]} Ng4 {[%emt 0:00:48]} 26. d5 {[%emt 0:01:37]} cxd5 {[%emt 0:02:07]} 27. Nxd5 {[%emt 0:01:40]} Rc8 {[%emt 0:00:41]} 28. Rxg4 {[%emt 0:03:24]} Rxc5 {[%emt 0:01:24]} 29. Rxe4 {[%emt 0:04:37]} fxe4 {[%emt 0:00:33] Weighted Error Value: White=0.81/Black=0.20 (precise)} 0-1

[Event "GER-ch Youth-ODJM 2022 A"]
[Site "Willingen"]
[Date "2022.06.08"]
[Round "6.16"]
[White "Pick, Max"]
[Black "Koll, Linus"]
[Result "0-1"]
[ECO "D02"]
[WhiteElo "1841"]
[BlackElo "1989"]
[Annotator "TA"]
[PlyCount "76"]
[EventDate "2022.06.05"]
[EventType "swiss"]
[EventRounds "9"]
[EventCountry "GER"]
[SourceTitle "playchess.com"]
[Source "ChessBase"]
[SourceQuality "1"]
[TimeControl "40/4500+30:900+30"]

{[%evp 15,76,-29,-20,-28,6,-37,31,28,32,0,0,-34,-26,-25,-31,-28,-27,-25,-19,-156,-183,-242,-253,-305,-280,-280,-287,-347,-297,-349,-335,-314,-332,-350,-347,-350,-330,-336,-341,-392,-388,-378,-336,-311,0,-812,-812,-894,-733,-1581,-1440,-29977,-29978,-29978,-29979,-29978,-29977,-29972,-29976,-29985,-29986,-29986,-29987]} 1. d4 {[%emt 0:00:00]} Nf6 {[%emt 0:00:00]} 2. Nf3 {[%emt 0:00:00]} d5 {[%emt 0:00:00]} 3. Bf4 {[%emt 0:00:00]} c5 {[%emt 0:00:00]} 4. e3 {[%emt 0:00:00]} Nc6 {[%emt 0:00:00]} 5. c3 {[%emt 0:00:00]} Qb6 {[%emt 0:00:00]} 6. Qb3 {[%emt 0:00:00]} c4 {[%emt 0:00:00]} 7. Qxb6 {[%emt 0:00:00]} axb6 {[%emt 0:00:00]} 8. Na3 {[%emt 0:00:00]} Bf5 {[%emt 0:12:09]} 9. Nh4 {[%emt 0:00:00] D02: 1 d4 d5 2 Nf3 sidelines, including 2...Nf6 3 g3 and 2...Nf6 3 Bf4.} Bg4 {[%emt 0:05:13][%cal Oe7e5] [#]} (9... Bg6 $5) 10. f3 $146 {[%emt 0:00:44]} (10. h3 $5 {[%cal Rh3g4]} Bd7 11. Nb5 $11) ({Predecessor:} 10. Nb5 Ra5 11. a4 Na7 12. Nc7+ Kd8 13. h3 Bd7 14. Na8 Ra6 15. Nf3 Ne8 16. Ng5 Be6 {0-1 (42) Nicolau,L-Bernardino,Z Brazil CXEB 1994}) 10... Be6 {[%emt 0:03:06]} ({Black should try} 10... Bd7 $15) 11. g4 {[%emt 0:02:03] White is slightly better.} h6 {[%emt 0:00:43]} 12. Bg3 {[%emt 0:02:19]} (12. Nb5 $5 {[%cal Rb5c7]} Kd7 13. Nc7 $14) 12... g5 {[%emt 0:00:39]} 13. Nf5 {[%emt 0:05:33]} h5 {[%emt 0:04:37]} 14. Be2 $1 {[%emt 0:05:55]} (14. Nb5 $2 Ra5 15. Nc7+ Kd8 $17) 14... hxg4 {[%emt 0:09:41]} 15. fxg4 {[%emt 0:02:59]} Ne4 $36 {[%emt 0:00:21][%mdl 2048] ...Bxf5 is the strong threat. Black has good play.} 16. O-O {[%emt 0:06:48]} Nxc3 {[%emt 0:01:11]} (16... Nxg3 17. Nxg3 Rh4 18. e4 $14) 17. bxc3 {[%emt 0:02:30]} (17. Bf3 $11 {was the only way to keep the balance.}) 17... Rxa3 $17 {[%emt 0:00:04]} 18. Rfb1 {[%emt 0:00:57]} (18. Be1 $142) 18... Rxc3 $19 {[%emt 0:06:36] And now ...Bxf5 would win.} 19. Kf2 {[%emt 0:04:33]} Bxf5 {[%emt 0:01:59]} 20. gxf5 {[%emt 0:00:11]} Bg7 {[%emt 0:01:00]} (20... Rc2 21. Rxb6 e6 22. Kf1 $17) 21. Rxb6 {[%emt 0:01:05] [#]} Rxe3 $3 {[%emt 0:05:46][%mdl 512]} 22. Rxc6 {[%emt 0:02:35]} Rxe2+ {[%emt 0:00:07]} (22... Bxd4 23. Rc8+ Kd7 24. Rxh8 Ra3+ 25. Kf1 Bxh8 26. Rb1 $11) 23. Kxe2 {[%emt 0:00:05]} bxc6 {[%emt 0:00:02][%mdl 4096] Endgame KRB-KRB} 24. Rb1 {[%emt 0:01:49] [#]} O-O $1 {[%emt 0:00:39]} ({Inferior is} 24... Bxd4 25. Rb8+ Kd7 26. Rb7+ Ke8 27. Rb8+ Kd7 28. Rb7+ Ke8 29. Rb8+ Kd7 $11) 25. Ke3 {[%emt 0:00:21]} e6 {[%emt 0:12:32]} (25... Ra8 $2 26. Rb8+ Rxb8 27. Bxb8 $19) 26. fxe6 {[%emt 0:03:51] Black must now prevent e7.} f5 {[%emt 0:00:34][%cal Bf7f5,Bf5f4][%mdl 32] Hoping for ...f4+.} ({Wrong is} 26... fxe6 $2 27. a4 $17) 27. Be5 {[%emt 0:08:28]} f4+ {[%emt 0:01:59]} 28. Kf3 {[%emt 0:00:30]} Re8 {[%emt 0:06:03]} 29. Rg1 {[%emt 0:02:18]} Bh6 {[%emt 0:03:33]} ({Don't play} 29... Rxe6 30. Rxg5 Rxe5 31. dxe5 $18) (29... Bxe5 $19 30. dxe5 Kf8 31. Rxg5 d4) 30. Bxf4 $2 {[%emt 0:07:35][%mdl 8192] [#]} (30. h4 $11) 30... Rf8 $1 {[%emt 0:00:35]} 31. Kg4 {[%emt 0:04:10]} gxf4 {[%emt 0:01:22] KRB-KR} 32. Kh5+ {[%emt 0:00:18]} Bg7 {[%emt 0:00:08] aiming for ...f3.} 33. a4 {[%emt 0:01:10]} f3 {[%emt 0:00:56] Black mates.} 34. e7 {[%emt 0:01:43]} Re8 {[%emt 0:00:07]} 35. Rf1 {[%emt 0:00:06]} Rxe7 {[%emt 0:00:06]} 36. Rxf3 {[%emt 0:00:05]} Bxd4 {[%emt 0:00:04]} 37. a5 {[%emt 0:01:20]} c3 {[%emt 0:00:10]} 38. Rf1 {[%emt 0:00:30]} Be3 {[%emt 0:00:10] Weighted Error Value: White=0.71/Black=0.24 (precise)} 0-1

[Event "GER-ch Youth-ODJM 2022 A"]
[Site "Willingen"]
[Date "2022.06.08"]
[Round "6.17"]
[White "Sabirov, Rafael"]
[Black "Metzinger, Hannes"]
[Result "1/2-1/2"]
[ECO "B23"]
[WhiteElo "1704"]
[BlackElo "1845"]
[Annotator "NA RC COMBH"]
[PlyCount "56"]
[EventDate "2022.06.05"]
[EventType "swiss"]
[EventRounds "9"]
[EventCountry "GER"]
[SourceTitle "playchess.com"]
[Source "ChessBase"]
[SourceQuality "1"]
[TimeControl "40/4500+30:900+30"]

1. e4 {[%emt 0:00:00]} c5 {[%emt 0:00:00]} 2. Nc3 {[%emt 0:00:00]} d6 {[%emt 0:00:00]} 3. f4 {[%emt 0:00:00]} g6 {[%emt 0:00:00]} 4. Nf3 {[%emt 0:00:00]} Bg7 {[%emt 0:00:00]} 5. Bc4 {[%emt 0:00:00]} Nc6 {[%emt 0:00:00]} 6. O-O {[%emt 0:00:00]} e6 {[%emt 0:00:00]} 7. d3 {[%emt 0:00:00]} Nge7 {[%emt 0:00:00]} 8. Qe1 {[%emt 0:00:00]} O-O {[%emt 0:00:00]} 9. a3 {[%emt 0:00:00]} d5 {[%emt 0:00:00]} 10. Bb3 {[%emt 0:00:00]} b5 {[%emt 0:00:00]} 11. Nxb5 {[%emt 0:09:20]} Qb6 {[%emt 0:00:00]} 12. Ba4 {[%emt 0:02:49]} Qa6 {[%emt 0:13:18]} 13. Nc7 {[%emt 0:08:51]} Qxa4 {[%emt 0:00:05]} 14. Nxa8 {[%emt 0:00:21]} Qxc2 {[%emt 0:04:01]} 15. Qd1 {[%emt 0:08:40]} Qxd1 {[%emt 0:01:30]} 16. Rxd1 {[%emt 0:00:02]} Bb7 {[%emt 0:00:07]} 17. Nc7 {[%emt 0:01:37]} a6 {[%emt 0:00:04]} 18. f5 {[%emt 0:03:31]} Nd4 {[%emt 0:12:23]} 19. Bg5 {[%emt 0:13:35]} Nec6 {[%emt 0:08:11]} 20. f6 {[%emt 0:07:12]} Bh8 {[%emt 0:00:13]} 21. exd5 {[%emt 0:02:59]} Nxf3+ {[%emt 0:00:12]} 22. gxf3 {[%emt 0:00:07]} Nd4 {[%emt 0:00:04]} 23. Kf2 {[%emt 0:05:05]} Rc8 {[%emt 0:01:43]} 24. d6 {[%emt 0:03:21]} h6 {[%emt 0:02:12]} 25. Be3 {[%emt 0:04:09]} Bxf6 {[%emt 0:00:42]} 26. Rac1 {[%emt 0:02:37]} Rd8 {[%emt 0:08:06]} 27. Rxc5 {[%emt 0:01:18]} Rxd6 {[%emt 0:00:07]} 28. Bf4 {[%emt 0:03:18]} Bh4+ 1/2-1/2

[Event "GER-ch Youth-ODJM 2022 A"]
[Site "Willingen"]
[Date "2022.06.08"]
[Round "6.18"]
[White "Kotyk, Michael"]
[Black "Paeslack, Luis"]
[Result "1-0"]
[ECO "E46"]
[WhiteElo "2197"]
[BlackElo "1889"]
[Annotator "TA"]
[PlyCount "81"]
[EventDate "2022.06.05"]
[EventType "swiss"]
[EventRounds "9"]
[EventCountry "GER"]
[SourceTitle "playchess.com"]
[Source "ChessBase"]
[SourceQuality "1"]
[TimeControl "40/4500+30:900+30"]

{[%evp 12,81,-2,-17,-6,-7,-2,0,0,-13,-12,0,-11,0,27,23,26,25,31,31,27,28,24,32,71,29,41,4,120,119,216,191,302,292,284,290,301,278,277,292,285,278,289,302,297,273,266,275,359,319,522,521,521,374,376,0,528,510,493,490,437,354,529,516,503,467,542,545,868,854,1093,837]} 1. d4 {[%emt 0:00:00]} Nf6 {[%emt 0:00:00]} 2. c4 {[%emt 0:00:00]} e6 {[%emt 0:00:00]} 3. Nc3 {[%emt 0:00:00]} Bb4 {[%emt 0:00:00]} 4. e3 {[%emt 0:00:00][%cal Be2e3,Be3e4,Be4e5][%mdl 32]} O-O {[%emt 0:00:00]} 5. Nge2 {[%emt 0:00:00]} Re8 {[%emt 0:00:00]} 6. a3 {[%emt 0:00:00]} Bf8 {[%emt 0:00:00]} 7. e4 {[%emt 0:00:00]} d5 $1 {[%emt 0:00:00] E46: Nimzo-Indian: Rubinstein: 4 e3 0-0 5 Ne2 without early Bd3.} 8. e5 {[%emt 0:00:00]} Nfd7 {[%emt 0:00:00][%cal Bf6d7,Bd7c5,Bc5e4,Be4c3][%mdl 32]} 9. cxd5 {[%emt 0:00:00]} exd5 {[%emt 0:00:00] The position is equal.} 10. f4 {[%emt 0:00:00]} c5 {[%emt 0:00:30]} 11. Be3 {[%emt 0:00:00]} Nc6 {[%emt 0:01:02]} (11... Nb6 {is interesting.} 12. dxc5 Nc4 13. Bg1 Nc6) 12. dxc5 (12. Nxd5 cxd4 13. Nxd4 Ndxe5 $1 14. fxe5 Qxd5 15. Nxc6 Qxc6 $17) 12... Bxc5 {[%emt 0:07:47]} 13. Bxc5 {[%emt 0:00:00]} (13. Nxd5 Ncxe5 14. fxe5 Qh4+ 15. Ng3 (15. g3 Qe4 $17) 15... Rxe5 $15) 13... Nxc5 {[%emt 0:00:04]} 14. b4 {[%emt 0:00:00]} Ne4 {[%emt 0:08:25] [#]} 15. Qxd5 $146 {[%emt 0:00:00]} ({Predecessor:} 15. Nxe4 dxe4 16. Qxd8 Rxd8 17. Ng3 Nd4 18. Rc1 Be6 19. Kf2 a5 20. b5 Rac8 21. Rxc8 Rxc8 {1-0 (42) Kotyk,M (2170)-Fischer,D (2367) Hamburg 2022}) 15... Nxc3 {[%emt 0:30:38]} 16. Qxd8 {[%emt 0:00:00]} (16. Nxc3 Nxe5 $1 17. fxe5 (17. Qxd8 Nd3+ 18. Kd2 Rxd8 $17) 17... Qxd5 18. Nxd5 Rxe5+ 19. Be2 Rxd5 $15) 16... Rxd8 {[%emt 0:02:29]} 17. Nxc3 {[%emt 0:00:00][%cal Be2c3,Bc3b5,Bb5d6][%mdl 32]} Nd4 {[%emt 0:16:57] Hoping for ...Nc2+.} 18. Rc1 {[%emt 0:07:33] Against Nc2+} Bf5 {[%emt 0:04:00]} 19. Be2 {[%emt 0:01:03]} (19. Nb5 $5 {[%cal Rb5d6]}) 19... Nc2+ {[%emt 0:07:01]} (19... Rdc8 $11 {remains equal.}) 20. Kf2 $16 {[%emt 0:00:55] aiming for g4. White now steadily converts the win.} h5 {[%emt 0:03:35] Inhibits g4.} (20... Nxa3 $16 21. Rhd1 a6) 21. Nb5 $1 $18 {[%emt 0:03:44] Strongly threatening Rhd1.} ({But not} 21. Bxh5 $6 Rd2+ 22. Be2 Nxa3 $16) 21... Rd2 {[%emt 0:00:48]} (21... Nd4 $142) 22. Rhd1 {[%emt 0:00:28]} Rad8 {[%emt 0:00:55][%cal Od2e2]} 23. Nd6 {[%emt 0:00:14]} ({Wrong is} 23. Nxa7 $2 Rxe2+ $1 {[%mdl 512]} 24. Kxe2 Bg4+ 25. Kf1 Bxd1 $19) 23... Rxe2+ {[%emt 0:00:53]} 24. Kxe2 {[%emt 0:00:19]} Bg4+ {[%emt 0:00:02]} 25. Kf2 {[%emt 0:04:39]} Bxd1 {[%emt 0:00:05]} 26. Rxd1 {[%emt 0:00:03]} Nxa3 {[%emt 0:00:13][%mdl 4096] Endgame KRN-KRN} 27. Ra1 {[%emt 0:01:04]} Nc2 {[%emt 0:00:07]} 28. Rxa7 {[%emt 0:00:05]} Nxb4 {[%emt 0:01:42]} 29. Rxb7 {[%emt 0:00:01]} Nd5 {[%emt 0:00:36]} 30. Kf3 {[%emt 0:02:17]} Rf8 $2 {[%emt 0:01:08]} (30... f6 31. Ke4 Nc3+ 32. Kf5 Kh7) 31. Ke4 {[%emt 0:02:56]} Nc3+ {[%emt 0:00:09]} 32. Kf5 {[%emt 0:03:03]} Nd5 {[%emt 0:01:29]} 33. Ke4 {[%emt 0:02:38] Prevents Ne3.} (33. g3 $142) 33... Nc3+ {[%emt 0:00:07]} 34. Kd4 {[%emt 0:00:12]} Ne2+ {[%emt 0:00:22] [#]} 35. Ke3 $1 {[%emt 0:00:06]} Nc3 {[%emt 0:00:20]} 36. Rb3 {[%emt 0:00:01]} Na4 {[%emt 0:01:04]} (36... Nd5+ $142 37. Ke4 Nc7) 37. Kd4 {[%emt 0:01:44] White is clearly winning.} g6 {[%emt 0:00:34]} 38. Kc4 {[%emt 0:01:59]} Ra8 {[%emt 0:00:23]} 39. g3 {[%emt 0:04:56]} Ra7 {[%emt 0:00:48]} 40. Kb5 {[%emt 0:00:59]} Ra6 {[%emt 0:00:24]} 41. Ra3 {[%emt 0:15:36] Weighted Error Value: White=0.28 (precise) /Black=0.43} ({Not} 41. Kxa6 Nc5+ 42. Kb5 Nxb3 $16) 1-0

[Event "GER-ch Youth-ODJM 2022 A"]
[Site "Willingen"]
[Date "2022.06.08"]
[Round "6.19"]
[White "Bartelt, Max Peter"]
[Black "Nguyen, Phuc Nhat"]
[Result "0-1"]
[ECO "A45"]
[WhiteElo "1959"]
[BlackElo "1809"]
[Annotator "TA"]
[PlyCount "70"]
[EventDate "2022.06.05"]
[EventType "swiss"]
[EventRounds "9"]
[EventCountry "GER"]
[SourceTitle "playchess.com"]
[Source "ChessBase"]
[SourceQuality "1"]
[TimeControl "40/4500+30:900+30"]

{[%evp 9,70,-12,-12,-21,0,0,0,0,0,0,0,0,0,0,0,0,0,-29,-14,-101,-101,-89,-93,-90,-112,-99,-45,-82,0,-33,-38,-50,47,-208,-182,-195,-154,-146,-152,-185,-188,-419,-370,-437,-431,-535,-479,-673,-691,-1015,-989,-1017,-993,-2507,-2488,-2244,-2205,-1827,-1833,-29982,-29983,-29974,-29975]} 1. d4 {[%emt 0:00:00]} Nf6 {[%emt 0:00:00]} 2. Bg5 {[%emt 0:00:00]} d5 {[%emt 0:00:00]} 3. Bxf6 {[%emt 0:00:00]} gxf6 {[%emt 0:00:00]} 4. Nc3 {[%emt 0:00:00]} e6 {[%emt 0:00:00]} 5. e3 {[%emt 0:00:00]} c5 {[%emt 0:00:00]} 6. Qh5 {[%emt 0:00:00] D00: 1 d4 d5: Unusual lines.} cxd4 {[%emt 0:00:00]} 7. exd4 {[%emt 0:00:00]} Nc6 {[%emt 0:00:00]} 8. O-O-O {[%emt 0:00:00] The position is equal.} Bb4 {[%emt 0:00:00]} 9. Nge2 {[%emt 0:00:00]} Bd7 {[%emt 0:00:00]} 10. f4 {[%emt 0:00:00][%cal Of4f5]} f5 {[%emt 0:00:00]} 11. g4 {[%emt 0:00:00]} fxg4 {[%emt 0:00:00]} 12. f5 {[%emt 0:00:00]} Rg8 {[%emt 0:00:00] White must now prevent ...Qg5+.} 13. h4 {[%emt 0:00:00] Against Qg5+} Qa5 {[%emt 0:00:00]} (13... exf5 14. Qxh7 Rf8 15. Re1 $11) 14. Bg2 {[%emt 0:00:00] [#]} (14. fxe6 $11 {keeps the balance.} Bxe6 15. Qxh7) 14... O-O-O $146 {[%emt 0:00:00]} ({But not} 14... exf5 $6 15. Bxd5 O-O-O 16. a3 $15) (14... Bxc3 $6 15. Nxc3 O-O-O 16. Qxh7 $11) ({Predecessor:} 14... Ne7 15. Qxh7 O-O-O 16. fxe6 Bxe6 17. Rdf1 Kb8 18. Qd3 Nc6 19. a3 Bf8 20. Nb5 a6 {1-0 (41) Portisch,G (2265)-Horvath,T (2410) Zalakaros 1995}) 15. a3 {[%emt 0:00:00]} Bxc3 {[%emt 0:00:00]} 16. Nxc3 {[%emt 0:00:00]} Ne7 {[%emt 0:24:43]} (16... Qc7 {feels hotter.} 17. Qxf7 Qf4+ 18. Kb1 Rdf8) 17. fxe6 {[%emt 0:00:00]} Bxe6 {[%emt 0:00:32]} (17... fxe6 $17 {Hoping for ...Nf5.} 18. Be4 Rdf8) 18. Rhf1 {[%emt 0:02:02] Inhibits Nf5.} Ng6 {[%emt 0:06:21]} ({Black should play} 18... Qc7 $17) 19. Qg5 {[%emt 0:06:10]} (19. Be4 $5) 19... h5 {[%emt 0:02:50]} 20. Rf6 {[%emt 0:01:42]} Qc7 {[%emt 0:01:51]} ({Black should try} 20... Kb8 $15 21. Qxh5 Qc7) 21. Nxd5 $2 {[%emt 0:04:09][%mdl 8192] Now White is beyond hope.} (21. Bxd5 $14 {was forced to keep a grip.} Ne7 22. Bxe6+ fxe6 23. Qxh5) 21... Bxd5 $19 {[%emt 0:03:08]} 22. Bxd5 {[%emt 0:01:28]} Ne7 $1 {[%emt 0:00:24][%csl LRd5,LRg5]} 23. Bxb7+ {[%emt 0:01:00]} Qxb7 {[%emt 0:00:42]} 24. Qc5+ {[%emt 0:05:24]} Qc7 {[%emt 0:02:02]} 25. Qb5 {[%emt 0:00:50]} (25. Qxh5 g3 26. Rxf7) 25... g3 {[%emt 0:05:16]} 26. Rf3 {[%emt 0:02:55] Threatens to win with Rc3.} Nd5 {[%emt 0:01:41] Prevents Rc3.} 27. Rb3 {[%emt 0:01:13] aiming for Qa6+.} Rd7 {[%emt 0:04:32]} 28. Qa6+ {[%emt 0:04:00]} (28. Rg1 $142 g2 29. Kb1) 28... Kd8 {[%emt 0:01:50]} 29. Rb5 {[%emt 0:00:19]} Rg6 {[%emt 0:02:18]} 30. Qa4 {[%emt 0:00:24]} g2 {[%emt 0:01:50]} 31. Rc5 {[%emt 0:02:55] [#]} g1=Q $1 {[%emt 0:03:39][%cal Og1d1] ( -> ...Qxd1+!)} 32. Rxc7 {[%emt 0:00:03]} Qe3+ {[%emt 0:00:13]} (32... Kxc7 $2 {perishes.} 33. Qxa7+ Kd6 34. Qb8+ Rc7 35. Rxg1 Rxg1+ 36. Kd2 Rg2+ 37. Kd3 $17) 33. Kb1 {[%emt 0:00:03]} Rxc7 {[%emt 0:00:29]} 34. Qb5 {[%emt 0:00:05] [#]} Nc3+ $1 {[%emt 0:00:14]} 35. bxc3 {[%emt 0:00:05]} Rb6 {[%emt 0:00:04] Weighted Error Value: White=1.02/Black=0.14 (very precise)} 0-1